bitfinex-derivatives/quotes_SOLF0:USTF0_20241222
["timestamp","ask_amount","ask_price","bid_price","bid_amount"]
[1734885974751,2.7392,182.67,182.63,2.7397]
[1734885975255,2.7394,182.66,182.59,3.3355]
[1734885975753,2.7394,182.66,182.62,2.7399]
[1734885979262,3.2091,182.77,182.68,2.739]
[1734885979263,2.7386,182.71,182.68,2.739]
[1734885979458,1.6347,182.77,182.67,20.74165407]
[1734885979661,3.08,182.78,182.67,20.74165407]
[1734885979855,0.19465,182.8,182.7,20.74165407]
[1734885980061,3.27465,182.8,182.7,20.74165407]
[1734885980552,3.27465,182.8,182.73,2.7382]
[1734885980553,2.7376,182.78,182.73,2.7382]
[1734885980950,2.7376,182.78,182.7,20.74165407]
[1734885981151,2.7376,182.78,182.74,2.7381]
[1734885982259,0.19465,182.8,182.73,20.74165407]
[1734885983264,0.19465,182.8,182.73,2.7381]
[1734885984563,0.19465,182.8,182.74,2.7381]
[1734885984762,0.19465,182.8,182.73,20.74165407]
[1734885985265,0.19465,182.8,182.75,2.7379]
[1734885987362,0.19465,182.8,182.68,5.0791]
[1734885987561,0.19465,182.8,182.73,2.7382]
[1734885989062,3.08,182.83,182.73,2.7382]
[1734885989362,3.08,182.83,182.74,2.7381]
[1734885990567,3.08,182.83,182.68,25.82075407]
[1734885991164,20.74165407,182.81,182.63,20.74165407]
[1734885991465,2.7384,182.73,182.62,3.2486]
[1734885991665,3.08,182.72,182.62,4.8837]
[1734885991864,3.08,182.73,182.63,20.74165407]
[1734885992064,3.08,182.75,182.63,20.74165407]
[1734885992263,3.08,182.76,182.63,20.74165407]
[1734885992668,2.7383,182.73,182.63,20.74165407]
[1734885993371,3.08,182.76,182.63,20.74165407]
[1734885993568,2.7386,182.71,182.63,20.74165407]
[1734885994065,2.7386,182.71,182.66,2.7392]
[1734885994263,2.7386,182.71,182.63,20.74165407]
[1734885994465,3.08,182.76,182.63,20.74165407]
[1734885994665,5.4739,182.83,182.63,20.74165407]
[1734885994865,20.74165407,182.81,182.63,20.74165407]
[1734885995070,2.7383,182.73,182.63,20.74165407]
[1734885995867,2.7383,182.73,182.68,2.7389]
[1734885996669,3.08,182.75,182.62,25.62535407]
[1734885996971,3.08,182.75,182.62,4.8837]
[1734885997170,1.6477,182.74,182.62,4.8837]
[1734885997364,3.0564,182.74,182.59,110.38213394]
[1734885997766,2.7395,182.66,182.61,2.74]
[1734885998266,2.7395,182.66,182.59,110.38213394]
[1734885998468,2.7395,182.66,182.61,2.7401]
[1734885999267,2.7395,182.66,182.61,2.74]
[1734885999770,2.7395,182.66,182.62,2.7399]
[1734885999969,5.8192,182.67,182.58,4.9078]
[1734886000269,3.08,182.67,182.58,4.9078]
[1734886000469,5.8192,182.67,182.58,4.9078]
[1734886000767,3.08,182.67,182.59,20.74165407]
[1734886000964,3.08,182.72,182.62,20.74165407]
[1734886001169,1.6477,182.74,182.63,3.08]
[1734886001369,4.7277,182.74,182.63,3.08]
[1734886001569,3.08,182.74,182.68,2.7389]
[1734886001764,2.7383,182.73,182.63,3.08]
[1734886003468,2.7383,182.73,182.69,2.7388]
[1734886004368,2.7387,182.71,182.66,2.7393]
[1734886004966,2.7387,182.71,182.67,2.7392]
[1734886005274,2.7389,182.69,182.63,3.08]
[1734886005473,2.7389,182.69,182.62,20.74165407]
[1734886005775,2.7389,182.69,182.64,2.7395]
[1734886006265,2.7389,182.69,182.65,2.7394]
[1734886006775,2.7387,182.71,182.67,2.7392]
[1734886007174,1.5716,182.81,182.64,3.08]
[1734886007175,22.31325407,182.81,182.64,3.08]
[1734886007369,2.7381,182.74,182.7,2.7386]
[1734886007970,3.08,182.75,182.66,3.3668]
[1734886008167,3.08,182.75,182.66,4.984]
[1734886008571,2.7383,182.74,182.69,2.7388]
[1734886008772,3.08,182.75,182.69,2.7388]
[1734886008972,3.08,182.75,182.66,4.984]
[1734886009176,3.08,182.75,182.62,23.82165407]
[1734886009377,23.82165407,182.75,182.62,3.08]
[1734886009581,23.82165407,182.75,182.61,1.696]
[1734886009582,1.5873,182.74,182.61,1.696]
[1734886009969,2.739,182.69,182.64,2.7395]
[1734886010174,5.819,182.69,182.64,2.7395]
[1734886010874,5.819,182.69,182.61,1.696]
[1734886011081,3.08,182.69,182.61,1.696]
[1734886011274,3.08,182.73,182.62,20.74165407]
[1734886012177,2.7386,182.71,182.67,2.7391]
[1734886012380,3.08,182.73,182.62,33.68329615]
[1734886012778,2.7385,182.72,182.68,2.7389]
[1734886012979,3.08,182.73,182.63,3.08]
[1734886013878,3.08,182.73,182.62,33.68329615]
[1734886014278,2.7388,182.7,182.65,2.7394]
[1734886014583,3.08,182.73,182.61,1.696]
[1734886015083,33.68329615,182.76,182.61,1.696]
[1734886015383,3.08,182.75,182.62,33.68329615]
[1734886016281,2.739,182.69,182.64,2.7395]
[1734886016781,2.739,182.69,182.65,2.7394]
[1734886017188,3.08,182.7,182.62,33.68329615]
[1734886017384,3.08,182.7,182.68,2.7389]
[1734886017591,3.08,182.74,182.65,33.68329615]
[1734886017886,33.68329615,182.79,182.65,33.68329615]
[1734886017887,3.08,182.75,182.65,33.68329615]
[1734886018086,2.7382,182.74,182.7,2.7386]
[1734886018285,3.4082,182.8,182.68,33.68329615]
[1734886018593,3.08,182.8,182.71,33.68329615]
[1734886019087,3.08,182.8,182.69,8.023]
[1734886019690,3.08,182.8,182.75,2.738]
[1734886019987,3.08,182.8,182.69,4.943]
[1734886020587,4.8097,182.8,182.69,4.943]
[1734886020786,4.8097,182.8,182.7,2.7387]
[1734886021388,2.7381,182.75,182.7,2.7387]
[1734886021588,2.7381,182.75,182.69,4.943]
[1734886021589,5.8181,182.75,182.71,2.7386]
[1734886022094,3.08,182.75,182.65,33.68329615]
[1734886022292,3.08,182.75,182.62,108.3841239]
[1734886022293,3.08,182.75,182.62,146.93402005]
[1734886022994,3.08,182.77,182.65,33.68329615]
[1734886023198,1.6917,182.79,182.68,33.68329615]
[1734886023386,3.08,182.78,182.68,33.68329615]
[1734886023594,3.08,182.78,182.71,33.68329615]
[1734886023791,1.576,182.85,182.71,33.68329615]
[1734886023993,2.737,182.82,182.77,2.7375]
[1734886024198,33.68329615,182.9,182.74,33.68329615]
[1734886024491,3.08,182.89,182.77,33.68329615]
[1734886024697,2.7362,182.87,182.82,2.7369]
[1734886024892,3.08,182.89,182.8,33.68329615]
[1734886025095,3.37185,182.9,182.81,1.6224]
[1734886025696,2.7361,182.88,182.82,2.7369]
[1734886025893,3.37185,182.9,182.81,1.6224]
[1734886026397,2.7364,182.86,182.81,1.6224]
[1734886026596,3.08,182.85,182.78,3.3933]
[1734886026794,0.29185,182.9,182.78,3.3933]
[1734886026795,3.08,182.84,182.78,3.3933]
[1734886026988,5.8168,182.84,182.78,6.1307]
[1734886027194,3.08,182.84,182.78,3.3933]
[1734886027395,5.8167,182.84,182.79,2.7374]
[1734886027699,5.8167,182.84,182.78,3.3933]
[1734886027896,2.7367,182.84,182.78,3.3933]
[1734886028098,2.7367,182.84,182.78,6.1308]
[1734886028401,3.08,182.85,182.75,1.6224]
[1734886028702,3.08,182.85,182.74,2.7381]
[1734886028997,1.624,182.84,182.71,4.8746]
[1734886029390,3.08,182.85,182.71,4.8746]
[1734886029598,3.08,182.85,182.74,33.68329615]
[1734886029795,3.08,182.85,182.79,2.7374]
[1734886030092,3.08,182.85,182.74,36.76329615]
[1734886030297,3.08,182.85,182.76,2.7377]
[1734886030495,2.7369,182.82,182.74,36.76329615]
[1734886031395,1.6053,182.89,182.77,33.68329615]
[1734886031600,3.08,182.88,182.78,1.6661]
[1734886031797,2.7366,182.84,182.79,2.7373]
[1734886031999,3.08,182.88,182.78,1.6661]
[1734886032397,2.7367,182.84,182.79,2.7373]
[1734886032601,3.08,182.83,182.78,1.6661]
[1734886032794,3.08,182.83,182.72,3.08]
[1734886032795,3.08,182.83,182.73,1.7407]
[1734886033200,2.7371,182.82,182.73,1.7407]
[1734886033992,2.7363,182.86,182.73,1.7407]
[1734886034198,3.08,182.85,182.76,20.69630228]
[1734886034596,5.8166,182.85,182.79,2.7372]
[1734886035000,5.8166,182.85,182.8,2.7372]
[1734886035999,2.7366,182.85,182.8,2.7372]
[1734886036299,3.08,182.86,182.76,20.69630228]
[1734886036496,3.08,182.86,182.73,1.7407]
[1734886036701,3.08,182.86,182.73,22.43700228]
[1734886037204,3.08,182.86,182.73,1.7407]
[1734886037702,2.7371,182.82,182.77,2.7377]
[1734886038806,3.08,182.86,182.73,1.7407]
[1734886039199,20.69630228,182.84,182.73,1.7407]
[1734886039399,20.69630228,182.84,182.71,3.2442]
[1734886039599,2.7376,182.78,182.73,2.7382]
[1734886039800,3.08,182.78,182.71,3.2442]
[1734886041398,2.7379,182.76,182.69,2.7389]
[1734886041597,3.08,182.78,182.64,3.3254]
[1734886041799,1.7407,182.77,182.64,3.3254]
[1734886042305,1.7407,182.77,182.66,2.7393]
[1734886042901,1.7407,182.77,182.64,3.3254]
[1734886043201,2.7386,182.71,182.67,2.7391]
[1734886044604,3.08,182.72,182.64,3.3254]
[1734886044804,3.08,182.72,182.62,1.58]
[1734886045107,3.08,182.72,182.64,2.7396]
[1734886045609,3.08,182.72,182.62,1.58]
[1734886045809,3.08,182.72,182.63,2.7398]
[1734886047406,2.7391,182.68,182.63,2.7398]
[1734886047615,3.08,182.72,182.63,2.7398]
[1734886048519,2.7392,182.67,182.63,2.7398]
[1734886049109,20.69630228,182.74,182.58,3.4532]
[1734886049308,20.69630228,182.71,182.58,3.4532]
[1734886049813,2.7395,182.65,182.61,2.74]
[1734886051013,3.08,182.66,182.58,3.4532]
[1734886051214,3.08,182.66,182.53,89.64047987]
[1734886051409,20.69630228,182.65,182.54,2.7411]
[1734886051610,22.29570228,182.65,182.54,2.7411]
[1734886052407,22.29570228,182.65,182.53,1.6787]
[1734886053009,30.26172052,182.89,182.59,20.69630228]
[1734886053203,1.5704,182.85,182.68,20.69630228]
[1734886053413,0.90500918,182.84,182.68,20.69630228]
[1734886053609,1.5704,182.85,182.73,2.7382]
[1734886053807,1.5704,182.85,182.71,20.69630228]
[1734886054011,2.7373,182.8,182.71,20.69630228]
[1734886054209,3.08,182.82,182.74,2.738]
[1734886054915,1.5704,182.85,182.74,20.69630228]
[1734886055208,2.7373,182.8,182.75,2.7379]
[1734886055512,3.08,182.84,182.74,20.69630228]
[1734886056207,3.08,182.84,182.73,33.64430394]
[1734886056606,3.08,182.84,182.76,33.64430394]
[1734886057309,3.08,182.84,182.77,2.7377]
[1734886057514,3.08,182.84,182.76,33.64430394]
[1734886057715,3.08,182.84,182.77,2.7377]
[1734886058806,3.08,182.84,182.72,5.01]
[1734886059112,36.72430394,182.84,182.67,123.28478381]
[1734886059310,1.6066,182.83,182.67,126.61148381]
[1734886059511,1.6066,182.83,182.67,36.97100394]
[1734886059811,1.6066,182.83,182.7,2.7387]
[1734886061708,1.6066,182.83,182.69,2.7389]
[1734886061914,1.6066,182.83,182.67,3.3267]
[1734886062114,1.6066,182.83,182.67,36.97100394]
[1734886063411,2.7382,182.74,182.68,2.7389]
[1734886063616,2.7382,182.74,182.67,36.97100394]
[1734886064113,2.738,182.75,182.67,36.97100394]
[1734886064415,3.08,182.76,182.67,36.97100394]
[1734886064811,5.818,182.76,182.7,2.7386]
[1734886065012,3.08,182.76,182.7,2.7386]
[1734886066215,3.08,182.76,182.67,36.97100394]
[1734886066421,3.08,182.76,182.68,2.7389]
[1734886067420,2.7384,182.73,182.68,2.7389]
[1734886067813,2.7384,182.73,182.67,36.97100394]
[1734886068011,2.7384,182.73,182.68,2.739]
[1734886068621,2.7384,182.73,182.69,2.7389]
[1734886068919,2.7384,182.73,182.67,36.97100394]
[1734886069116,3.08,182.76,182.67,3.3267]
[1734886069321,3.08,182.76,182.67,1.6303]
[1734886070321,2.7383,182.73,182.69,2.7388]
[1734886070516,3.08,182.76,182.67,35.27460394]
[1734886071213,3.08,182.76,182.69,2.7388]
[1734886071722,2.7383,182.74,182.69,2.7388]
[1734886071923,3.08,182.76,182.69,2.7388]
[1734886072122,3.08,182.76,182.67,1.6303]
[1734886072425,3.08,182.76,182.65,1.6125]
[1734886072625,1.5932,182.75,182.64,108.3841239]
[1734886073128,1.5932,182.75,182.64,18.74364403]
[1734886074128,2.7391,182.68,182.63,2.7397]
[1734886074319,3.08,182.69,182.63,2.7397]
[1734886074524,3.08,182.69,182.62,1.6114]
[1734886074825,3.08,182.69,182.67,2.7392]
[1734886075225,2.7385,182.72,182.66,2.7392]
[1734886075526,3.08,182.73,182.64,33.64430394]
[1734886075724,3.08,182.73,182.65,18.56927781]
[1734886076427,2.7386,182.71,182.67,2.7391]
[1734886078531,3.08,182.73,182.69,2.7389]
[1734886078532,2.7383,182.73,182.69,2.7389]
[1734886078833,2.7383,182.73,182.65,18.5659608]
[1734886078834,3.08,182.75,182.67,20.72406364]
[1734886079035,3.08,182.75,182.68,1.6617]
[1734886079538,3.08,182.75,182.66,18.5659608]
[1734886079834,2.739,182.68,182.66,18.5659608]
[1734886080132,20.72406364,182.75,182.66,18.5659608]
[1734886080333,3.08,182.74,182.65,114.62249917]
[1734886080835,2.7393,182.66,182.65,114.62249917]
[1734886081538,3.08,182.68,182.6,114.62249917]
[1734886081930,2.7392,182.67,182.6,114.62249917]
[1734886082134,3.08,182.68,182.61,33.68643489]
[1734886082332,3.08,182.72,182.61,33.68643489]
[1734886082539,5.8186,182.72,182.64,33.68643489]
[1734886082934,3.08,182.72,182.64,33.68643489]
[1734886083134,3.08,182.72,182.69,2.7388]
[1734886083335,2.7383,182.73,182.69,2.7388]
[1734886084429,2.7393,182.66,182.65,18.61142182]
[1734886084639,3.08,182.66,182.65,149.40079978]
[1734886085431,2.7396,182.64,182.57,18.64714859]
[1734886085633,3.08,182.66,182.57,18.64714859]
[1734886085835,36.76643489,182.66,182.57,18.64714859]
[1734886086439,2.7405,182.58,182.57,18.64714859]
[1734886086640,5.8205,182.58,182.57,18.64714859]
[1734886086941,3.08,182.58,182.51,114.28640333]
[1734886087140,2.7408,182.56,182.51,117.02780333]
[1734886087344,3.08,182.58,182.51,114.28640333]
[1734886087642,2.7408,182.57,182.51,117.02790333]
[1734886088140,2.7408,182.57,182.51,2.7415]
[1734886088341,2.7408,182.57,182.52,2.7414]
[1734886088538,3.08,182.58,182.49,117.51880333]
[1734886089132,2.7416,182.51,182.5,18.62525899]
[1734886089739,5.8214,182.53,182.5,18.62525899]
[1734886090139,3.08,182.53,182.5,18.62525899]
[1734886090339,2.7415,182.52,182.49,1.5977]
[1734886090945,3.08,182.57,182.49,1.5977]
[1734886091147,3.08,182.58,182.49,1.5977]
[1734886091344,2.7408,182.56,182.51,2.7416]
[1734886091536,3.08,182.58,182.49,1.5977]
[1734886091537,3.08,182.58,182.49,35.28413489]
[1734886092048,2.7407,182.57,182.52,2.7414]
[1734886092442,2.7405,182.59,182.53,2.7412]
[1734886092745,3.08,182.61,182.52,33.68643489]
[1734886092949,2.74,182.62,182.57,2.7407]
[1734886093149,3.08,182.64,182.56,1.654]
[1734886093545,3.08,182.64,182.57,1.7243]
[1734886093842,2.7399,182.62,182.58,2.7404]
[1734886094447,3.08,182.64,182.59,2.7404]
[1734886094651,3.08,182.67,182.59,2.7404]
[1734886095543,3.08,182.67,182.57,3.3783]
[1734886095745,3.08,182.67,182.58,2.7405]
[1734886095940,3.08,182.67,182.57,3.3783]
[1734886096141,2.7394,182.66,182.62,2.7399]
[1734886096348,3.08,182.67,182.58,36.76643489]
[1734886096742,5.8192,182.67,182.63,2.7397]
[1734886097347,3.08,182.69,182.58,36.76643489]
[1734886097942,2.7395,182.65,182.6,2.7402]
[1734886098555,2.7395,182.65,182.58,36.76643489]
[1734886098856,2.7393,182.67,182.61,2.7401]
[1734886099553,2.7392,182.67,182.62,2.7398]
[1734886099853,3.08,182.69,182.58,36.76643489]
[1734886100054,3.08,182.69,182.6,2.7402]
[1734886100353,3.08,182.69,182.58,33.68643489]
[1734886100549,2.74,182.62,182.57,24.74415899]
[1734886100745,3.08,182.69,182.57,22.00355899]
[1734886101356,36.76643489,182.69,182.57,1.7243]
[1734886101554,2.55159298,182.68,182.57,1.7243]
[1734886101751,2.7408,182.56,182.55,18.62525899]
[1734886102254,2.7408,182.56,182.53,1.6481]
[1734886102952,3.08,182.61,182.53,1.6481]
[1734886103153,3.08,182.61,182.55,2.741]
[1734886103352,3.08,182.62,182.55,2.741]
[1734886103554,3.08,182.62,182.53,1.6481]
[1734886103555,2.7403,182.6,182.53,1.6481]
[1734886103754,3.08,182.62,182.54,1.6489]
[1734886104651,3.08,182.62,182.55,33.68643489]
[1734886105650,5.82,182.62,182.57,2.7406]
[1734886107657,3.08,182.62,182.55,33.68643489]
[1734886107857,3.08,182.62,182.54,93.81594917]
[1734886108355,2.7404,182.59,182.55,2.7409]
[1734886108853,2.7403,182.6,182.56,2.7407]
[1734886109058,3.08,182.62,182.55,33.68643489]
[1734886109358,2.7399,182.63,182.59,2.7403]
[1734886109657,35.36323489,182.75,182.58,33.68643489]
[1734886109853,3.08,182.74,182.61,33.68643489]
[1734886110057,3.08,182.74,182.62,5.0418]
[1734886110562,2.7395,182.66,182.62,5.0418]
[1734886110949,2.7395,182.65,182.62,5.0418]
[1734886111156,3.08,182.69,182.62,1.6859]
[1734886111956,2.7397,182.64,182.62,1.6859]
[1734886112161,2.7397,182.64,182.6,2.7402]
[1734886112458,2.7397,182.64,182.61,2.7401]
[1734886115361,2.7392,182.67,182.63,2.7398]
[1734886115562,2.7392,182.67,182.61,33.68643489]
[1734886115957,2.7393,182.66,182.61,33.68643489]
[1734886116153,3.08,182.69,182.58,123.11248406]
[1734886116556,2.74,182.62,182.58,125.85298406]
[1734886116757,2.74,182.62,182.58,92.16654917]
[1734886116958,3.06,182.64,182.58,89.42604917]
[1734886117162,3.06,182.64,182.57,94.30604917]
[1734886117457,3.06,182.64,182.58,2.7405]
[1734886117664,3.06,182.64,182.57,94.30604917]
[1734886118159,3.06,182.64,182.57,4.88]
[1734886119065,2.74,182.62,182.59,2.7404]
[1734886119365,3.06,182.64,182.57,4.88]
[1734886119569,2.7403,182.6,182.57,3.3089]
[1734886120366,3.06,182.64,182.57,3.3089]
[1734886120562,3.06,182.64,182.56,89.42604917]
[1734886121573,2.7403,182.6,182.56,92.16674917]
[1734886121867,2.7403,182.6,182.56,2.7407]
[1734886123469,3.06,182.63,182.55,123.11248406]
[1734886123864,2.7401,182.62,182.58,2.7404]
[1734886124063,3.06,182.63,182.58,2.7404]
[1734886124371,3.06,182.63,182.56,133.14810571]
[1734886125068,2.74,182.62,182.58,2.7404]
[1734886125266,2.74,182.62,182.57,108.1640734]
[1734886125665,33.68643489,182.75,182.58,33.68643489]
[1734886125972,3.96522677,182.74,182.61,33.68643489]
[1734886126177,3.256,182.76,182.65,2.7394]
[1734886126178,2.739,182.69,182.65,2.7394]
[1734886126659,3.256,182.76,182.62,1.5777]
[1734886126866,3.06,182.75,182.62,1.5777]
[1734886127263,3.06,182.75,182.63,89.42604917]
[1734886127468,3.256,182.76,182.64,33.68643489]
[1734886127663,3.06,182.75,182.64,33.68643489]
[1734886127970,2.7383,182.73,182.69,2.7388]
[1734886129268,3.06,182.75,182.67,33.68643489]
[1734886129468,3.06,182.79,182.7,33.68643489]
[1734886129971,3.06,182.79,182.73,2.7383]
[1734886130677,4.6818,182.82,182.74,2.7381]
[1734886130678,3.06,182.8,182.74,2.7381]
[1734886131169,2.7373,182.8,182.74,2.7381]
[1734886131370,3.06,182.81,182.74,2.7381]
[1734886132975,2.7374,182.79,182.74,2.7381]
[1734886134779,1.7164,182.87,182.76,33.68643489]
[1734886135077,3.06,182.86,182.79,33.68643489]
[1734886135278,3.06,182.87,182.79,33.68643489]
[1734886136374,3.06,182.87,182.76,33.68643489]
[1734886137078,2.7369,182.83,182.78,2.7375]
[1734886138076,2.7366,182.84,182.79,2.7374]
[1734886138671,3.1544,182.92,182.79,36.74643489]
[1734886138875,3.06,182.91,182.82,33.68643489]
[1734886139085,2.7359,182.9,182.85,2.7365]
[1734886139282,3.06,182.91,182.82,33.68643489]
[1734886139689,3.06,182.91,182.8,1.6559]
[1734886140779,3.06,182.91,182.79,36.74643489]
[1734886140985,3.06,182.91,182.78,2.7374]
[1734886141184,0.90431409,182.9,182.76,33.68643489]
[1734886141380,3.06,182.91,182.79,33.68643489]
[1734886141585,2.7361,182.88,182.83,2.7368]
[1734886142786,3.06,182.91,182.82,2.7369]
[1734886143385,1.5732,182.92,182.81,20.68928654]
[1734886143581,20.68928654,183.0,182.84,20.68928654]
[1734886143783,2.735,182.95,182.9,2.7357]
[1734886143993,3.3071,183.0,182.9,20.68928654]
[1734886144182,4.6437,183.0,182.9,20.68928654]
[1734886144378,2.7344,182.99,182.95,2.7349]
[1734886144986,2.7344,182.99,182.9,20.68928654]
[1734886145686,2.7344,182.99,182.94,2.735]
[1734886146289,3.45314,183.01,182.92,33.57984373]
[1734886146688,0.39314,183.01,182.95,33.57984373]
[1734886146986,3.2932,183.07,183.02,2.7339]
[1734886146987,2.7332,183.07,183.02,2.7339]
[1734886147188,3.06,183.08,182.98,33.57984373]
[1734886148390,3.06,183.1,182.98,33.57984373]
[1734886148993,3.06,183.1,183.01,33.57984373]
[1734886149191,2.733,183.08,183.01,33.57984373]
[1734886149393,56.9,183.17,183.04,33.57984373]
[1734886149589,3.06,183.16,183.04,33.57984373]
[1734886149791,3.06,183.16,183.05,2.7334]
[1734886150088,3.06,183.16,183.04,33.57984373]
[1734886151089,2.7326,183.11,183.05,2.7334]
[1734886151296,3.06,183.16,183.04,33.57984373]
[1734886151589,4.7423,183.23,183.1,2.7327]
[1734886151795,3.06,183.22,183.1,2.7327]
[1734886152095,2.7318,183.17,183.11,2.7326]
[1734886152495,3.06,183.18,183.1,33.57984373]
[1734886152698,3.06,183.17,183.07,33.57984373]
[1734886152993,3.06,183.16,183.07,33.57984373]
[1734886153195,2.7324,183.13,183.07,33.57984373]
[1734886153395,3.06,183.14,183.04,33.57984373]
[1734886153596,3.06,183.13,183.04,33.57984373]
[1734886154197,3.06,183.13,183.02,3.3743]
[1734886154393,1.6033,183.12,182.96,3.06]
[1734886154595,4.6397,183.12,182.96,3.06]
[1734886155094,38.21954373,183.12,182.95,33.57984373]
[1734886155397,0.90328319,183.11,182.95,33.57984373]
[1734886155592,0.90334909,183.1,182.95,33.57984373]
[1734886155791,0.90334909,183.11,182.95,33.57984373]
[1734886156000,33.57984373,183.09,182.95,33.57984373]
[1734886156198,3.06,183.08,182.95,33.57984373]
[1734886156393,4.6397,183.12,182.97,2.7347]
[1734886156394,38.21954373,183.12,182.97,2.7347]
[1734886156594,3.06,183.11,182.98,33.57984373]
[1734886156795,2.7332,183.08,182.98,33.57984373]
[1734886157001,3.06,183.11,182.98,33.57984373]
[1734886157397,4.6397,183.12,183.02,2.7339]
[1734886157700,3.06,183.1,183.01,33.57984373]
[1734886157903,3.06,183.1,182.98,33.57984373]
[1734886158401,2.7335,183.06,182.98,33.57984373]
[1734886158603,2.7335,183.06,183.01,33.57984373]
[1734886159103,3.06,183.1,183.04,33.57984373]
[1734886159299,1.6791,183.17,183.04,33.57984373]
[1734886159495,2.7328,183.1,183.05,2.7335]
[1734886160603,2.7326,183.12,183.07,2.7332]
[1734886160798,3.06,183.15,183.04,33.57984373]
[1734886161195,2.7326,183.11,183.04,33.57984373]
[1734886161397,3.06,183.15,183.04,33.57984373]
[1734886162806,3.06,183.15,183.04,36.31334373]
[1734886163405,3.06,183.15,183.05,2.7334]
[1734886164302,3.06,183.15,183.07,2.7331]
[1734886164607,3.06,183.15,183.04,33.57984373]
[1734886165106,3.06,183.15,182.99,4.781]
[1734886165107,3.06,183.15,183.01,33.57984373]
[1734886165605,2.7329,183.09,183.01,33.57984373]
[1734886166001,3.06,183.15,183.01,33.57984373]
[1734886166205,2.7328,183.1,183.01,33.57984373]
[1734886166409,1.7106,183.19,183.04,33.57984373]
[1734886166601,3.06,183.18,183.07,2.7331]
[1734886166802,3.06,183.18,183.08,1.6518]
[1734886167406,3.06,183.18,183.03,3.06]
[1734886167407,36.63984373,183.18,183.03,3.06]
[1734886167607,36.63984373,183.18,183.0,1.6518]
[1734886168208,33.57984373,183.15,183.0,1.6518]
[1734886168400,33.57984373,183.12,182.99,3.1772]
[1734886168599,4.7754,183.11,182.99,3.1772]
[1734886168801,4.7754,183.11,182.99,1.5873]
[1734886169012,6.1791,183.11,182.95,1.6518]
[1734886169512,33.57984373,183.09,182.95,1.6518]
[1734886169906,33.57984373,183.06,182.95,1.6518]
[1734886170112,2.7348,182.96,182.95,1.6518]
[1734886171113,3.06,183.0,182.95,1.6518]
[1734886171316,3.06,183.02,182.95,1.6518]
[1734886171614,2.7337,183.04,182.95,1.6518]
[1734886171814,3.1191,183.11,182.97,33.57984373]
[1734886171815,3.06,183.08,182.97,33.57984373]
[1734886172204,3.06,183.1,182.97,33.57984373]
[1734886172811,3.06,183.1,183.03,2.7338]
[1734886173015,3.06,183.1,182.97,33.57984373]
[1734886173311,2.7338,183.03,182.97,33.57984373]
[1734886173709,3.06,183.1,182.97,33.57984373]
[1734886174309,2.7328,183.1,183.04,2.7336]
[1734886174616,3.06,183.1,183.04,2.7336]
[1734886174910,3.06,183.1,183.01,3.2502]
[1734886175113,2.7332,183.08,183.03,2.7338]
[1734886175313,2.7332,183.08,183.04,1.674]
[1734886175912,2.7334,183.06,183.04,1.674]
[1734886176216,3.06,183.1,183.01,3.2502]
[1734886176419,2.7338,183.04,183.01,3.2502]
[1734886178412,3.06,183.1,183.01,3.2502]
[1734886178612,3.06,183.1,183.01,1.6247]
[1734886178812,3.06,183.1,182.98,1.674]
[1734886179218,3.06,183.1,182.98,91.10004917]
[1734886179916,2.7341,183.01,182.98,91.10004917]